fUSD/lending_fUSD_20260213
["ID","MTS","AMOUNT","RATE_DAILY","PERIOD"]
[405311077,1770973861644,-8365.83,0.00043835,120]
[405311078,1770973861654,-8365.83,0.00043835,120]
[405311079,1770973861664,-8365.83,0.00043835,120]
[405311080,1770973861674,-8365.83,0.00043835,120]
[405311081,1770973861683,-8365.83,0.00043835,120]
[405311082,1770973861693,-8365.83,0.00043835,120]
[405311083,1770973861702,-8365.83,0.00043835,120]
[405311084,1770973861711,-8365.83,0.00043835,120]
[405311085,1770973861721,-8365.83,0.00043835,120]
[405311086,1770973861731,-500.0,0.00043835,120]
[405311087,1770973861741,-528.67100201,0.00043835,120]
[405311088,1770973861751,-8365.83,0.00043835,120]
[405311089,1770973861760,-8365.83,0.00043835,120]
[405311090,1770973861771,-8365.83,0.00043835,120]
[405311091,1770973861923,-8365.83,0.00043835,120]
[405311092,1770973861934,-8365.83,0.00043835,120]
[405311093,1770973861943,-8365.83,0.00043835,120]
[405311094,1770973861953,-8365.83,0.00043835,120]
[405311095,1770973861962,-8365.83,0.00043835,120]
[405311096,1770973861971,-8365.83,0.00043835,120]
[405311097,1770973861981,-8365.83,0.00043835,120]
[405311098,1770973861990,-8365.83,0.00043835,120]
[405311099,1770973861999,-8365.83,0.00043835,120]
[405311100,1770973862009,-500.0,0.00043835,120]
[405311101,1770973862019,-8365.83,0.00043835,120]
[405311102,1770973862028,-8366.05466206,0.00043835,120]
[405311103,1770973862038,-500.0,0.00043835,120]
[405311104,1770973862047,-500.0,0.00043835,120]
[405311105,1770973862056,-500.0,0.00043835,120]
[405311106,1770973862065,-500.0,0.00043835,120]
[405311107,1770973862076,-500.0,0.00043835,120]
[405311108,1770973862086,-500.0,0.00043835,120]
[405311109,1770973862095,-500.0,0.00043835,120]
[405311110,1770973862105,-500.0,0.00043835,120]
[405311111,1770973862115,-500.0,0.00043835,120]
[405311112,1770973862128,-311.84564883,0.00043835,120]
[405311113,1770973862138,-500.0,0.00043835,120]
[405311114,1770973862147,-500.0,0.00043835,120]
[405311115,1770973862157,-500.0,0.00043835,120]
[405311116,1770973862168,-500.0,0.00043835,120]
[405311117,1770973862177,-500.0,0.00043835,120]
[405311118,1770973862187,-500.0,0.00043835,120]
[405311119,1770973862198,-500.0,0.00043835,120]
[405311120,1770973862207,-500.0,0.00043835,120]
[405311121,1770973862217,-500.0,0.00043835,120]
[405311122,1770973862227,-500.0,0.00043835,120]
[405311123,1770973862237,-500.0,0.00043835,120]
[405311124,1770973862246,-500.0,0.00043835,120]
[405311125,1770973862256,-500.0,0.00043835,120]
[405311126,1770973862265,-500.0,0.00043835,120]
[405311127,1770973862275,-500.0,0.00043835,120]
[405311128,1770973862284,-500.0,0.00043835,120]
[405311129,1770973862294,-500.0,0.00043835,120]
[405311130,1770973862303,-500.0,0.00043835,120]
[405311131,1770973862313,-489.17188233,0.00043835,120]
[405311132,1770973862324,-500.0,0.00043835,120]
[405311133,1770973862334,-500.0,0.00043835,120]
[405311134,1770973862343,-500.0,0.00043835,120]
[405311135,1770973862353,-500.0,0.00043835,120]
[405311136,1770973862362,-500.0,0.00043835,120]
[405311137,1770973862372,-500.0,0.00043835,120]
[405311138,1770973862381,-500.0,0.00043835,120]
[405311139,1770973862391,-500.0,0.00043835,120]
[405311140,1770973862400,-500.0,0.00043835,120]
[405311141,1770973862410,-500.0,0.00043835,120]
[405311142,1770973862419,-500.0,0.00043835,120]
[405311143,1770973862429,-500.0,0.00043835,120]
[405311144,1770973862438,-500.0,0.00043835,120]
[405311145,1770973862447,-500.0,0.00043835,120]
[405311146,1770973862459,-500.0,0.00043835,120]
[405311147,1770973862471,-500.0,0.00043835,120]
[405311148,1770973862481,-500.0,0.00043835,120]
[405311149,1770973862490,-500.0,0.00043835,120]
[405311150,1770973862500,-233.62366235,0.00043835,120]
[405311151,1770973862510,-405.15781292,0.00043835,120]
[405311152,1770973862519,-500.0,0.00043835,120]
[405311153,1770973862528,-500.0,0.00043835,120]
[405311154,1770973862537,-500.0,0.00043835,120]
[405311155,1770973862547,-154.4710593,0.00043835,120]
[405311156,1770973862556,-500.0,0.00043835,120]
[405311157,1770973862566,-376.06269625,0.00043835,120]
[405311158,1770973862576,-557.50044133,0.00043836,2]
[405311159,1770973862585,-743.0,0.00043836,30]
[405311160,1770973862595,-152.14,0.00043859,120]
[405311161,1770973862604,-485.0,0.00043913,30]
[405311162,1770973862613,-659.06,0.00043945,120]
[405311163,1770973862622,-300.0,0.00044,120]
[405311164,1770973862632,-1433.141,0.00044,90]
[405311165,1770973862642,-1433.141,0.00044,90]
[405311166,1770973862651,-1433.14,0.00044,90]
[405311167,1770973862661,-200.56901205,0.00044,120]
[405311168,1770973862670,-1123.51,0.00044,30]
[405311169,1770973862679,-3504.50461887,0.00044,15]
[405311170,1770973862689,-154.0,0.00044,90]
[405311171,1770973862698,-256016.59620174,0.00044,7]
[405311172,1770973862708,-58015.61926841,0.00044,60]
[405311173,1770973862718,-41943.48,0.00044,2]
[405311174,1770973862728,-221.70775164,0.00044,120]
[405311175,1770973862738,-659.06,0.00044082,120]
[405311176,1770973862747,-1999.0,0.00044109,120]
[405311177,1770973862756,-500.0,0.00044109,120]
[405311178,1770973862765,-500.0,0.00044109,120]
[405311179,1770973862775,-500.0,0.00044109,120]
[405311180,1770973862784,-500.0,0.00044109,120]
[405311181,1770973862794,-500.0,0.00044109,120]
[405311182,1770973862803,-500.0,0.00044109,120]
[405311183,1770973862813,-525.67480835,0.00044109,120]
[405311184,1770973862823,-2784.41,0.00044109,120]
[405311185,1770973862833,-2784.41,0.00044109,120]
[405311186,1770973862842,-2784.41,0.00044109,120]
[405311187,1770973862851,-2784.41,0.00044109,120]
[405311188,1770973862861,-2784.41,0.00044109,120]
[405311189,1770973862870,-2784.41,0.00044109,120]
[405311190,1770973862879,-2784.41,0.00044109,120]
[405311191,1770973862889,-2784.41,0.00044109,120]
[405311192,1770973862898,-2784.41,0.00044109,120]
[405311193,1770973862908,-2784.41,0.00044109,120]
[405311194,1770973862917,-2784.41,0.00044109,120]
[405311195,1770973862927,-2784.41,0.00044109,120]
[405311196,1770973862937,-2784.41,0.00044109,120]
[405311197,1770973862947,-2784.41,0.00044109,120]
[405311198,1770973862956,-2784.41,0.00044109,120]
[405311199,1770973862965,-2784.41,0.00044109,120]
[405311200,1770973862974,-2784.41,0.00044109,120]
[405311201,1770973862984,-2784.41,0.00044109,120]
[405311202,1770973862993,-2784.41,0.00044109,120]
[405311203,1770973863002,-2784.41,0.00044109,120]
[405311204,1770973863011,-2784.41,0.00044109,120]
[405311205,1770973863021,-2784.41,0.00044109,120]
[405311206,1770973863031,-2784.41,0.00044109,120]
[405311207,1770973863040,-2784.58405575,0.00044109,120]
[405311208,1770973863050,-154.0,0.0004411,90]
[405311209,1770973863059,-192.84512961,0.00044175,120]
[405311210,1770973863068,-192.84,0.00044175,120]
[405311211,1770973863078,-179.98878764,0.00044175,120]
[405311212,1770973863088,-179.98878764,0.00044175,120]
[405311213,1770973863098,-179.98878764,0.00044175,120]
[405311214,1770973863107,-179.98878764,0.00044175,120]
[405311215,1770973863117,-250.0,0.00044192,120]
[405311216,1770973863130,-250.0,0.00044192,120]
[405311217,1770973863141,-250.0,0.00044192,120]
[405311218,1770973863151,-250.0,0.00044192,120]
[405311219,1770973863160,-250.0,0.00044192,120]
[405311220,1770973863171,-300.0,0.00044192,120]
[405311221,1770973863181,-300.0,0.00044192,120]
[405311222,1770973863191,-320.37586059,0.00044192,120]
[405311223,1770973863202,-200.0,0.00044193,120]
[405311224,1770973863211,-179.98,0.00044198,120]
[405311225,1770973863221,-791.07225384,0.00044198,120]
[405311226,1770973863231,-742.30250523,0.00044198,9]
[405311227,1770973863241,-17453.21831288,0.00044198,2]
[405311228,1770973863251,-188.38143114,0.00044198,120]
[405311229,1770973863261,-72570.33881666,0.00044198,15]
[405311230,1770973863270,-1163.50066521,0.00044198,2]
[405311231,1770973863280,-10823.76842371,0.00044198,2]
[405311232,1770973863290,-16502.27179484,0.00044198,2]
[405311233,1770973863299,-150.0,0.000442,29]
[405311234,1770973863309,-150.0,0.000442,75]
[405311235,1770973863319,-151.0,0.000442,120]
[405311236,1770973863330,-253.0,0.000442,45]
[405311237,1770973863339,-659.06,0.00044219,120]
[405311238,1770973863350,-800.0,0.00044262,16]
[405311239,1770973863360,-800.0,0.00044262,16]
[405311240,1770973863369,-800.0,0.00044262,16]
[405311241,1770973863379,-800.0,0.00044262,16]
[405311242,1770973863389,-800.0,0.00044262,16]
[405311243,1770973863400,-800.0,0.00044262,16]
[405311244,1770973863409,-800.0,0.00044262,16]
[405311245,1770973863419,-800.0,0.00044262,16]
[405311246,1770973863428,-800.0,0.00044262,32]
[405311247,1770973863437,-158.698908,0.00044263,120]
[405311248,1770973863447,-274.24725,0.00044263,120]
[405311249,1770973863456,-151.0,0.00044263,120]
[405311250,1770973863465,-155.649527,0.00044263,120]
[405311251,1770973863475,-151.0,0.00044263,120]
[405311252,1770973863484,-151.0,0.00044263,120]
[405311253,1770973863494,-204.66933,0.00044263,120]
[405311254,1770973863503,-151.0,0.00044263,120]
[405311255,1770973863512,-151.0,0.00044263,120]
[405311256,1770973863522,-152.331167,0.00044263,120]
[405311257,1770973863539,-156.345647,0.00044263,120]
[405311258,1770973863554,-183.135739,0.00044263,120]
[405311259,1770973863567,-151.0,0.00044263,120]
[405311260,1770973863579,-151.0,0.00044263,120]
[405311261,1770973863592,-249.574016,0.00044263,120]
[405311262,1770973863606,-151.0,0.00044263,120]
[405311263,1770973863619,-151.0,0.00044263,120]
[405311264,1770973863633,-151.0,0.00044263,120]
[405311265,1770973863646,-158.891346,0.00044263,120]
[405311266,1770973863662,-220.485858,0.00044263,120]
[405311267,1770973863674,-153.729865,0.00044263,120]
[405311268,1770973863686,-178.626627,0.00044263,120]
[405311269,1770973863697,-161.725556,0.00044263,120]
[405311270,1770973863712,-151.0,0.00044263,120]
[405311271,1770973863737,-160.530758,0.00044263,120]
[405311272,1770973863755,-165.23144,0.00044263,120]
[405311273,1770973863771,-155.740293,0.00044263,120]
[405311274,1770973863787,-151.0,0.00044263,120]
[405311275,1770973863804,-176.145963,0.00044263,120]
[405311276,1770973863818,-151.0,0.00044263,120]
[405311277,1770973863834,-151.0,0.00044263,120]
[405311278,1770973863849,-243.003869,0.00044263,120]
[405311279,1770973863864,-151.0,0.00044263,120]
[405311280,1770973863879,-152.959201,0.00044263,120]
[405311281,1770973863891,-151.0,0.00044263,120]
[405311282,1770973863905,-268.00347,0.00044263,120]
[405311283,1770973863922,-161.612271,0.00044263,120]
[405311284,1770973863937,-180.494328,0.00044263,120]
[405311285,1770973863951,-151.0,0.00044263,120]
[405311286,1770973863966,-151.0,0.00044263,120]
[405311287,1770973863977,-189.285564,0.00044263,120]
[405311288,1770973863989,-170.116335,0.00044263,120]
[405311289,1770973864002,-151.0,0.00044263,120]
[405311290,1770973864018,-151.0,0.00044263,120]
[405311291,1770973864029,-163.720603,0.00044263,120]
[405311292,1770973864040,-151.0,0.00044266,54]
[405311293,1770973864051,-331.45249326,0.0004427,3]
[405311294,1770973864068,-151.0,0.00044273,30]
[405311295,1770973864083,-169.98429568,0.00044274,30]
[405311296,1770973864096,-150.0,0.00044274,30]
[405311297,1770973864107,-150.0,0.00044274,30]
[405311298,1770973864118,-150.0,0.00044274,30]
[405311299,1770973864135,-15102.9713898,0.00044275,2]
[405311300,1770973864148,-928.82797361,0.00044288,7]
[405311301,1770973864162,-155499.75415226,0.00044294,2]
[405311302,1770973864176,-153.87003674,0.00044294,7]
[405311303,1770973864189,-151.0,0.00044295,120]
[405311304,1770973864203,-151.0,0.00044295,120]
[405311305,1770973864216,-151.0,0.00044295,120]
[405311306,1770973864229,-153.395525,0.00044295,120]
[405311307,1770973864246,-151.0,0.00044295,120]
[405311308,1770973864261,-153.686361,0.00044295,120]
[405311309,1770973864276,-155.036509,0.00044295,120]
[405311310,1770973864291,-168.30118,0.00044295,120]
[405311311,1770973864304,-151.0,0.00044295,120]
[405311312,1770973864319,-151.0,0.00044295,120]
[405311313,1770973864333,-181.288909,0.00044295,120]
[405311314,1770973864346,-151.0,0.00044295,120]
[405311315,1770973864359,-151.0,0.00044295,120]
[405311316,1770973864372,-151.0,0.00044295,120]
[405311317,1770973864385,-151.0,0.00044295,120]
[405311318,1770973864398,-151.0,0.00044295,120]
[405311319,1770973864412,-151.0,0.00044295,120]
[405311320,1770973864425,-246.73407,0.00044295,120]
[405311321,1770973864442,-151.0,0.00044295,120]
[405311322,1770973864456,-151.0,0.00044295,120]
[405311323,1770973864469,-151.0,0.00044295,120]
[405311324,1770973864481,-151.0,0.00044295,120]
[405311325,1770973864495,-151.0,0.00044295,120]
[405311326,1770973864508,-171.008783,0.00044295,120]
[405311327,1770973864520,-151.0,0.00044295,120]
[405311328,1770973864532,-151.0,0.00044295,120]
[405311329,1770973864544,-151.0,0.00044295,120]
[405311330,1770973864556,-151.0,0.00044295,120]
[405311331,1770973864569,-151.0,0.00044295,120]
[405311332,1770973864581,-151.0,0.00044295,120]
[405311333,1770973864593,-151.0,0.00044295,120]
[405311334,1770973864605,-151.0,0.00044295,120]
[405311335,1770973864622,-151.0,0.00044295,120]
[405311336,1770973864634,-151.0,0.00044295,120]
[405311337,1770973864646,-151.0,0.00044295,120]
[405311338,1770973864659,-151.0,0.00044295,120]
[405311339,1770973864672,-301.000519,0.00044295,120]
[405311340,1770973864684,-151.0,0.00044295,120]
[405311341,1770973864696,-151.0,0.00044295,120]
[405311342,1770973864708,-151.0,0.00044295,120]
[405311343,1770973864719,-154.601512,0.00044295,120]
[405311344,1770973864731,-151.162535,0.00044295,120]
[405311345,1770973864743,-151.0,0.00044295,120]
[405311346,1770973864757,-151.0,0.00044295,120]
[405311347,1770973864769,-151.0,0.00044295,120]
[405311348,1770973864781,-151.0,0.00044295,120]
[405311349,1770973864793,-151.0,0.00044295,120]
[405311350,1770973864808,-151.0,0.00044295,120]
[405311351,1770973864820,-151.0,0.00044295,120]
[405311352,1770973864832,-151.0,0.00044295,120]
[405311353,1770973864844,-151.0,0.00044295,120]
[405311354,1770973864856,-151.0,0.00044295,120]
[405311355,1770973864868,-151.0,0.00044295,120]
[405311356,1770973864880,-151.0,0.00044295,120]
[405311357,1770973864892,-204.272542,0.00044295,120]
[405311358,1770973864903,-151.0,0.00044295,120]
[405311359,1770973864916,-151.0,0.00044295,120]
[405311360,1770973864928,-151.0,0.00044295,120]
[405311361,1770973864939,-261.670843,0.00044295,120]
[405311362,1770973864951,-151.0,0.00044295,120]
[405311363,1770973864962,-151.0,0.00044295,120]
[405311364,1770973864974,-151.0,0.00044295,120]
[405311365,1770973864989,-152.302548,0.00044295,120]
[405311366,1770973865001,-151.0,0.00044295,120]
[405311367,1770973865015,-151.0,0.00044295,120]
[405311368,1770973865027,-151.0,0.00044295,120]
[405311369,1770973865039,-151.0,0.00044295,120]
[405311370,1770973865052,-151.0,0.00044295,120]
[405311371,1770973865064,-151.0,0.00044295,120]
[405311372,1770973865076,-151.0,0.00044295,120]
[405311373,1770973865088,-179.44251,0.00044295,120]
[405311374,1770973865100,-166.959997,0.00044295,120]
[405311375,1770973865114,-151.0,0.00044295,120]
[405311376,1770973865133,-151.647773,0.00044295,120]
[405311377,1770973865148,-151.0,0.00044295,120]
[405311378,1770973865163,-151.0,0.00044295,120]
[405311379,1770973865172,-151.0,0.00044295,120]
[405311380,1770973865182,-151.0,0.00044295,120]
[405311381,1770973865192,-151.0,0.00044295,120]
[405311382,1770973865205,-165.536013,0.00044295,120]
[405311383,1770973865215,-151.0,0.00044295,120]
[405311384,1770973865225,-151.0,0.00044295,120]
[405311385,1770973865235,-151.0,0.00044295,120]
[405311386,1770973865245,-257.568687,0.00044295,120]
[405311387,1770973865255,-153.66688,0.00044295,120]
[405311388,1770973865265,-151.0,0.00044295,120]
[405311389,1770973865275,-166.178113,0.00044295,120]
[405311390,1770973865285,-179.942559,0.00044295,120]
[405311391,1770973865294,-179.942559,0.00044295,120]
[405311392,1770973865304,-179.942559,0.00044295,120]
[405311393,1770973865314,-179.942559,0.00044295,120]
[405311394,1770973865324,-179.942559,0.00044295,120]
[405311395,1770973865334,-179.942559,0.00044295,120]
[405311396,1770973865354,-179.942559,0.00044295,120]
[405311397,1770973865363,-179.942559,0.00044295,120]
[405311398,1770973865373,-179.942559,0.00044295,120]
[405311399,1770973865382,-179.942559,0.00044295,120]
[405311400,1770973865392,-179.942559,0.00044295,120]
[405311401,1770973865402,-179.942559,0.00044295,120]
[405311402,1770973865412,-179.942559,0.00044295,120]
[405311403,1770973865421,-179.942559,0.00044295,120]
[405311404,1770973865431,-179.942559,0.00044295,120]
[405311405,1770973865441,-179.942559,0.00044295,120]
[405311406,1770973865451,-179.942559,0.00044295,120]
[405311407,1770973865460,-179.942559,0.00044295,120]
[405311408,1770973865470,-179.942559,0.00044295,120]
[405311409,1770973865479,-179.942554,0.00044295,120]
[405311410,1770973865834,-160.346872,0.00044295,120]
[405311411,1770973865863,-229.673984,0.00044295,120]
[405311412,1770973865876,-151.0,0.00044295,120]
[405311413,1770973865886,-158.507903,0.00044295,120]
[405311414,1770973865895,-191.212227,0.00044295,120]
[405311415,1770973865905,-151.0,0.00044295,120]
[405311416,1770973865915,-151.000018,0.00044295,120]
[405311417,1770973865925,-158.735065,0.00044295,120]
[405311418,1770973865934,-151.0,0.00044295,120]
[405311419,1770973865944,-151.0,0.00044295,120]
[405311420,1770973865954,-252.059869,0.00044295,120]
[405311421,1770973865963,-151.0,0.00044295,120]
[405311422,1770973865972,-151.0,0.00044295,120]
[405311423,1770973865981,-177.091513,0.00044295,120]
[405311424,1770973865990,-151.0,0.00044295,120]
[405311425,1770973866000,-163.263235,0.00044295,120]
[405311426,1770973866009,-151.0,0.00044295,120]
[405311427,1770973866022,-234.029245,0.00044295,120]
[405311428,1770973866031,-165.519734,0.00044295,120]
[405311429,1770973866041,-151.0,0.00044295,120]
[405311430,1770973866050,-151.0,0.00044295,120]
[405311431,1770973866060,-151.0,0.00044295,120]
[405311432,1770973866070,-151.0,0.00044295,120]
[405311433,1770973866079,-151.0,0.00044295,120]
[405311434,1770973866088,-151.0,0.00044295,120]
[405311435,1770973866098,-151.0,0.00044295,120]
[405311436,1770973866107,-151.0,0.00044295,120]
[405311437,1770973866116,-295.086623,0.00044295,120]
[405311438,1770973866129,-151.0,0.00044295,120]
[405311439,1770973866139,-245.468131,0.00044295,120]
[405311440,1770973866148,-151.0,0.00044295,120]
[405311441,1770973866158,-151.0,0.00044295,120]
[405311442,1770973866168,-151.0,0.00044295,120]
[405311443,1770973866177,-151.0,0.00044295,120]
[405311444,1770973866187,-222.517375,0.00044295,120]
[405311445,1770973866196,-162.873119,0.00044295,120]
[405311446,1770973866205,-153.0,0.00044296,60]
[405311447,1770973866215,-300.0,0.00044296,120]
[405311448,1770973866224,-1138.60702209,0.00044296,120]
[405311449,1770973866233,-153.0,0.00044296,60]
[405311450,1770973866243,-153.0,0.00044296,60]
[405311451,1770973866252,-153.0,0.00044296,60]
[405311452,1770973866262,-153.0,0.00044296,60]
[405311453,1770973866272,-153.0,0.00044296,60]
[405311454,1770973866281,-153.0,0.00044296,60]
[405311455,1770973866291,-253.56791203,0.00044296,60]
[405311456,1770973866301,-50000.0,0.00044297,39]
[405311457,1770973866310,-151.0,0.00044297,54]
[405311458,1770973866320,-151.0,0.00044297,55]
[405311459,1770973866330,-300.0,0.00044297,30]
[405311460,1770973866339,-500.0,0.00044297,60]
[405311461,1770973866349,-2020.71396236,0.00044298,120]
[405311462,1770973866359,-28629.11851761,0.00044298,54]
[405311463,1770973866370,-5986398.53748446,0.00044298,10]
[405311464,1770973866532,-640.14698549,0.00044298,10]
[405311465,1770973866613,-788.39178057,7.178e-05,2]
[405311466,1770973866623,-6593.0,0.0001782,2]
[405311467,1770973866633,-6593.0,0.0002082,2]
[405311468,1770973866642,-1591.11100679,0.0002127,2]
[405311469,1770973866651,-150.0,0.00034696,2]
[405311470,1770973866661,-150.0,0.0003643,2]
[405311471,1770973866670,-89669.92025669,0.00044298,10]
[405311472,1770973866681,-29819.32642133,0.00044298,10]
[405311473,1770973866692,-1820.89468532,0.00044298,10]
[405311474,1770973866708,-150.0,0.00038252,2]
[405311475,1770973866717,-1396.53426149,0.00044298,10]
[405311476,1770973866729,-8269456.5990607,0.00044298,10]
[405311477,1770973866741,-3554.411,0.00044298,10]
[405311478,1770973866754,-333.645,0.00044298,10]
[405311479,1770973866903,-503.0,0.00019,2]
[405311480,1770973866913,-459.07338131,0.00021346,4]
[405311481,1770973866965,-0.80272566,0.00013673,2]
[405311482,1770973867017,-499.19727434,0.00013673,2]
[405311483,1770973867027,-159.57503303,0.00014221,2]
[405311484,1770973867036,-43.92661869,0.00021346,4]
[405311485,1770973867045,-503.0,0.00023692,6]
[405311486,1770973867054,-6593.0,0.0002382,2]
[405311487,1770973867064,-503.0,0.00026038,8]
[405311488,1770973867074,-6593.0,0.0002682,2]
[405311489,1770973867084,-503.0,0.00028385,10]
[405311490,1770973867093,-6593.0,0.0002982,2]
[405311491,1770973867103,-503.0,0.00030731,13]
[405311492,1770973867112,-6593.0,0.0003282,2]
[405311493,1770973867124,-503.0,0.00033077,15]
[405311494,1770973867134,-503.0,0.00035423,17]
[405311495,1770973867143,-5221.26019006,0.0003582,2]
[405311496,1770973867155,-1371.73980994,0.0003582,2]
[405311497,1770973867164,-308.0,0.000372,2]
[405311498,1770973867175,-503.0,0.00037769,19]
[405311499,1770973867184,-5149.904,0.0003882,2]
[405311500,1770973867194,-503.0,0.00040115,22]
[405311501,1770973867203,-150.0,0.00040165,2]
[405311502,1770973867213,-150.0,0.00042173,120]
[405311503,1770973867223,-503.0,0.00042462,24]
[405311504,1770973867233,-45785.51588125,0.00044195,15]
[405311505,1770973867243,-321.63231967,0.00044198,2]
[405311506,1770973867253,-150.0,0.00044281,120]
[405311507,1770973867264,-61930.49764472,0.00044298,10]
[405311508,1770973867276,-42131.8407588,0.00044298,10]
[405311509,1770973867287,-1114.60207552,0.00044298,10]
[405311510,1770973867306,-3556.70223507,0.00044298,10]
[405311513,1770974338111,-9616.402967,9.154e-05,2]
[405311514,1770974338140,-164.83511019,9.2e-05,3]
[405311515,1770974338167,-173.73617631,9.2e-05,3]
[405311516,1770974338193,-175.96144283,9.2e-05,3]
[405311517,1770974338219,-244.69703225,9.2e-05,3]
[405311518,1770974338244,-187.64,9.3e-05,2]
[405311519,1770974338275,-196.42487238,9.352e-05,2]
[405311520,1770974338300,-349.21845059,9.352e-05,2]
[405311521,1770974338326,-500.0,9.352e-05,2]
[405311522,1770974338351,-500.0,9.352e-05,2]
[405311523,1770974338377,-229.37156274,9.352e-05,2]
[405311524,1770974338402,-500.0,9.352e-05,2]
[405311525,1770974338428,-500.0,9.352e-05,2]
[405311526,1770974338457,-500.0,9.352e-05,2]
[405311527,1770974338484,-500.0,9.352e-05,2]
[405311528,1770974338516,-500.0,9.352e-05,2]
[405311529,1770974338544,-354.01093675,9.352e-05,2]
[405311530,1770974338571,-150.0,9.352e-05,2]
[405311531,1770974338596,-305.82849943,9.352e-05,2]
[405311532,1770974338623,-531.49529529,9.352e-05,2]
[405311533,1770974341665,300.0,9.352e-05,2]
[405311534,1770974370909,300.0,8.7e-05,3]
[405311535,1770974373009,600.0,8.8e-05,3]
[405311536,1770974375100,900.0,8.9e-05,3]
[405311537,1770974377180,1200.0,9e-05,3]
[405311538,1770974380966,530.04920796,9.352e-05,2]
[405311539,1770974381005,500.0,9.352e-05,2]
[405311540,1770974381339,455.44495546,9.352e-05,2]
[405311577,1770975032034,-173.29326793,9.052e-05,2]
[405311579,1770975032044,-116.59183806,9.052e-05,2]
[405311582,1770975032091,-401.50869826,9.052e-05,2]
[405311583,1770975032100,-500.0,9.052e-05,2]
[405311584,1770975032110,-500.0,9.052e-05,2]
[405311585,1770975032119,-500.0,9.052e-05,2]
[405311586,1770975032127,-500.0,9.052e-05,2]
[405311587,1770975032137,-500.0,9.052e-05,2]
[405311588,1770975032148,-500.0,9.052e-05,2]
[405311589,1770975032158,-500.0,9.052e-05,2]
[405311590,1770975032167,-500.0,9.052e-05,2]
[405311591,1770975032176,-41.12371873,9.052e-05,2]
[405311592,1770975032188,-458.87628127,9.052e-05,2]
[405311593,1770975032197,-212.52023748,9.052e-05,2]
[405311594,1770975032366,-287.47976252,9.052e-05,2]
[405311595,1770975032376,-500.0,9.052e-05,2]
[405311596,1770975032386,-66.83273941,9.052e-05,2]
[405311597,1770975032398,-433.16726059,9.052e-05,2]
[405311598,1770975032408,-220.78086033,9.052e-05,2]
[405311599,1770975032421,-413.68312529,9.052e-05,2]
[405311600,1770975032430,-500.0,9.052e-05,2]
[405311601,1770975032442,-500.0,9.052e-05,2]
[405311602,1770975032452,-500.0,9.052e-05,2]
[405311603,1770975032462,-500.0,9.052e-05,2]
[405311604,1770975032472,-500.0,9.052e-05,2]
[405311605,1770975032483,-500.0,9.052e-05,2]
[405311606,1770975032493,-500.0,9.052e-05,2]
[405311607,1770975032502,-500.0,9.052e-05,2]
[405311608,1770975032512,-500.0,9.052e-05,2]
[405311609,1770975032522,-500.0,9.052e-05,2]
[405311610,1770975032531,-294.98698974,9.052e-05,2]
[405311611,1770975032541,-11635.47887526,9.053e-05,2]
[405311612,1770975032550,-160.81615984,9.053e-05,2]
[405311613,1770975032560,-2370.25231948,9.053e-05,2]
[405311614,1770975032570,-4459.55471348,9.053e-05,2]
[405311615,1770975032581,-5273.63938798,9.053e-05,2]
[405311616,1770975032593,-89415.95167271,9.053e-05,2]
[405311618,1770975038155,-24545.04712779,9.053e-05,2]